bitfinex/quotes_BTCUSD_20250213
["timestamp","ask_amount","ask_price","bid_price","bid_amount"]
[1739466457360,0.28235509,95795.0,95794.0,0.06185946]
[1739466457742,0.17380009,95795.0,95794.0,0.06385946]
[1739466458376,0.29012209,95795.0,95794.0,0.06385946]
[1739466458581,0.13263209,95795.0,95794.0,0.06385946]
[1739466458835,0.00842969,95795.0,95794.0,0.06385946]
[1739466459188,0.00842969,95795.0,95794.0,0.06185946]
[1739466459359,0.00842969,95795.0,95794.0,0.06285946]
[1739466459689,0.00842969,95795.0,95794.0,0.06185946]
[1739466459895,0.00842969,95795.0,95794.0,0.16436311]
[1739466460105,0.15,95809.0,95794.0,0.17950365]
[1739466460282,0.156571,95804.0,95795.0,0.10250365]
[1739466460433,0.00842969,95808.0,95795.0,0.10250365]
[1739466460638,0.156567,95806.0,95795.0,0.10250365]
[1739466460834,0.156571,95803.0,95795.0,0.10250365]
[1739466461051,0.00842969,95802.0,95796.0,0.03882927]
[1739466461265,0.00842969,95802.0,95797.0,0.10250365]
[1739466461966,0.15,95809.0,95797.0,0.10250365]
[1739466462180,0.156575,95801.0,95797.0,0.10250365]
[1739466462381,0.156574,95801.0,95797.0,0.10250365]
[1739466462524,0.208763,95803.0,95794.0,0.00022344]
[1739466462525,0.001,95808.0,95794.0,0.00022344]
[1739466462744,0.001,95808.0,95794.0,0.10272709]
[1739466462745,0.156584,95795.0,95794.0,0.10272709]
[1739466463187,0.16501369,95795.0,95794.0,0.10272709]
[1739466463436,0.00842969,95795.0,95794.0,0.10272709]
[1739466464103,0.156582,95797.0,95794.0,0.10272709]
[1739466464359,0.156582,95796.0,95795.0,0.01027271]
[1739466464696,0.00842969,95796.0,95795.0,0.01027271]
[1739466465128,0.156574,95801.0,95795.0,0.01027271]
[1739466465310,0.00842969,95796.0,95795.0,0.01027271]
[1739466465442,0.156577,95800.0,95795.0,0.01027271]
[1739466465651,0.00842969,95799.0,95796.0,0.12966273]
[1739466465862,0.15,95808.0,95799.0,0.156577]
[1739466466062,0.156568,95805.0,95800.0,0.10250365]
[1739466466312,0.156572,95802.0,95801.0,0.02884692]
[1739466466485,0.156581,95797.0,95796.0,0.02715908]
[1739466466702,0.156581,95797.0,95794.0,0.00022344]
[1739466466940,0.156583,95796.0,95794.0,0.10272709]
[1739466467484,0.00838424,95795.0,95794.0,0.10272709]
[1739466468764,0.00838424,95795.0,95794.0,0.00022344]
[1739466468765,0.16496824,95795.0,95794.0,0.00022344]
[1739466468968,0.306584,95795.0,95794.0,0.00022344]
[1739466469180,2.59476324,95795.0,95794.0,0.00122344]
[1739466469391,2.11993424,95795.0,95794.0,0.00122344]
[1739466469569,1.79852224,95795.0,95794.0,0.00022344]
[1739466469775,1.51892224,95795.0,95794.0,0.00322344]
[1739466470030,1.30788324,95795.0,95794.0,0.00322344]
[1739466470234,1.30788324,95795.0,95794.0,0.00222344]
[1739466470471,1.30888324,95795.0,95794.0,0.00222344]
[1739466471749,1.30788324,95795.0,95794.0,0.00222344]
[1739466471963,1.30788324,95795.0,95794.0,0.00022344]
[1739466472167,1.30988324,95795.0,95794.0,0.00122344]
[1739466472373,1.31088324,95795.0,95794.0,0.00122344]
[1739466472793,1.31288324,95795.0,95794.0,0.00022344]
[1739466473015,1.31088324,95795.0,95794.0,0.00022344]
[1739466473217,1.31088324,95795.0,95794.0,0.00122344]
[1739466473427,1.31088324,95795.0,95794.0,0.00022344]
[1739466473861,1.31188324,95795.0,95794.0,0.00122344]
[1739466474077,1.61308689,95795.0,95794.0,4.4e-07]
[1739466474370,0.98618659,95795.0,95794.0,4.4e-07]
[1739466474805,0.98818659,95795.0,95794.0,4.4e-07]
[1739466475237,0.98818659,95795.0,95763.0,0.08339458]
[1739466475238,0.156615,95776.0,95763.0,0.08339458]
[1739466475447,1.027109,95776.0,95763.0,0.08339458]
[1739466475663,1.15309535,95776.0,95763.0,0.08339458]
[1739466475867,1.11211935,95776.0,95763.0,0.08339458]
[1739466476082,0.90407335,95776.0,95763.0,0.08339458]
[1739466476291,0.80455035,95776.0,95763.0,0.08339458]
[1739466476499,0.80555035,95776.0,95763.0,0.08339458]
[1739466476921,0.80455035,95776.0,95763.0,0.08339458]
[1739466477135,0.80655035,95776.0,95763.0,0.08339458]
[1739466478133,0.80755035,95776.0,95763.0,0.08339458]
[1739466481551,0.76639535,95776.0,95763.0,0.08339458]
[1739466481993,0.76439535,95776.0,95763.0,0.08339458]
[1739466482410,0.76639535,95776.0,95763.0,0.08339458]
[1739466482735,0.76439535,95776.0,95763.0,0.08339458]
[1739466483000,0.75018435,95776.0,95763.0,0.08339458]
[1739466483206,0.75218435,95776.0,95763.0,0.08339458]
[1739466483435,0.65656735,95776.0,95763.0,0.08339458]
[1739466483777,0.62858635,95776.0,95769.0,0.0781]
[1739466483970,0.62858635,95776.0,95775.0,0.00805578]
[1739466484496,0.62658635,95776.0,95775.0,0.00805578]
[1739466484931,0.62858635,95776.0,95775.0,0.00805578]
[1739466485339,0.62658635,95776.0,95775.0,0.00805578]
[1739466485586,0.75267035,95776.0,95775.0,0.00805578]
[1739466485937,0.62858635,95776.0,95775.0,0.00022344]
[1739466488789,0.35242165,95776.0,95775.0,0.00022344]
[1739466489156,0.47858635,95776.0,95775.0,0.00022344]
[1739466491318,0.62858635,95776.0,95775.0,0.00022344]
[1739466493352,0.86129,95776.0,95775.0,4.4e-07]
[1739466493562,0.71381558,95776.0,95775.0,4.4e-07]
[1739466494072,0.71181558,95776.0,95775.0,4.4e-07]
[1739466494397,0.71581558,95776.0,95775.0,0.00100044]
[1739466494644,0.71781558,95776.0,95775.0,4.4e-07]
[1739466495411,0.256651,95754.0,95753.0,0.08339458]
[1739466495642,0.26479572,95754.0,95753.0,0.08339458]
[1739466495861,2.36732172,95754.0,95753.0,0.08339458]
[1739466496068,0.156667,95744.0,95743.0,0.08339458]
[1739466496273,0.867859,95744.0,95743.0,0.08339458]
[1739466496553,0.00814472,95744.0,95743.0,0.13096182]
[1739466496884,0.15666,95749.0,95743.0,0.13096182]
[1739466496885,0.156664,95746.0,95743.0,0.13096182]
[1739466497127,0.00814472,95744.0,95743.0,0.13096182]
[1739466497399,0.156664,95746.0,95743.0,0.13096182]
[1739466497597,0.16481172,95744.0,95743.0,0.13096182]
[1739466497807,0.156667,95744.0,95743.0,0.13096182]
[1739466498024,0.16481172,95744.0,95743.0,0.13096182]
[1739466498246,0.26682772,95744.0,95743.0,0.13196182]
[1739466498692,0.26682772,95744.0,95743.0,0.13296182]
[1739466498903,0.13739372,95744.0,95743.0,0.13096182]
[1739466499113,0.00814472,95744.0,95743.0,0.13596182]
[1739466499327,0.01357453,95744.0,95743.0,0.13596182]
[1739466499558,0.0223942,95744.0,95743.0,0.13296182]
[1739466500210,0.1662382,95744.0,95743.0,0.13296182]
[1739466500421,0.0223942,95744.0,95743.0,0.13096182]
[1739466500852,0.0223942,95744.0,95743.0,0.13596182]
[1739466501058,0.0223942,95744.0,95743.0,0.13296182]
[1739466501198,0.0223942,95744.0,95743.0,0.13396182]
[1739466501400,0.0223942,95744.0,95743.0,0.13596182]
[1739466501640,0.0223942,95744.0,95743.0,0.13296182]
[1739466501841,0.0223942,95744.0,95743.0,0.13596182]
[1739466502140,0.0223942,95744.0,95743.0,0.13396182]
[1739466502350,0.0223942,95744.0,95743.0,0.13596182]
[1739466502548,0.0223942,95744.0,95743.0,0.13296182]
[1739466502980,0.00881967,95744.0,95743.0,0.13296182]
[1739466503518,0.02227668,95744.0,95743.0,0.13096182]
[1739466503919,0.02227668,95744.0,95743.0,0.13296182]
[1739466504389,0.02227668,95744.0,95743.0,0.13096182]
[1739466504725,0.02227668,95744.0,95743.0,0.13296182]
[1739466504943,0.00881967,95744.0,95743.0,0.13296182]
[1739466505132,0.00881967,95744.0,95743.0,0.13596182]
[1739466505342,0.02227668,95744.0,95743.0,0.13296182]
[1739466505552,0.00881967,95744.0,95743.0,0.13296182]
[1739466505889,0.00881967,95744.0,95743.0,0.13596182]
[1739466506092,0.02227668,95744.0,95743.0,0.13596182]
[1739466506273,0.00881967,95744.0,95743.0,0.13596182]
[1739466506477,0.02227668,95744.0,95743.0,0.13596182]
[1739466508063,0.11230839,95752.0,95743.0,0.13596182]
[1739466508282,0.156658,95750.0,95744.0,0.05017585]
[1739466508491,0.01121417,95751.0,95745.0,0.10250365]
[1739466508666,0.14721124,95760.0,95745.0,0.10250365]
[1739466508870,0.14721124,95760.0,95751.0,0.156655]
[1739466509077,0.01122108,95759.0,95752.0,0.04680447]
[1739466509313,0.01122108,95759.0,95758.0,0.156644]
[1739466509454,0.01122108,95759.0,95758.0,0.33874765]
[1739466509660,0.15663,95767.0,95758.0,0.33874765]
[1739466510034,0.002,95760.0,95759.0,0.25914565]
[1739466510241,0.002,95760.0,95759.0,0.38807316]
[1739466511630,0.14721124,95770.0,95760.0,0.15664]
[1739466511835,0.14721124,95770.0,95762.0,0.156638]
[1739466512090,0.14721124,95770.0,95763.0,0.10250365]
[1739466512301,0.01122108,95769.0,95763.0,0.10250365]
[1739466512505,0.01122108,95769.0,95765.0,0.156633]
[1739466512707,0.01122108,95769.0,95765.0,0.10250365]
[1739466512916,0.16784808,95769.0,95765.0,0.10250365]
[1739466513225,0.01122108,95769.0,95765.0,0.10250365]
[1739466513622,0.156628,95768.0,95765.0,0.10250365]
[1739466513804,0.114781,95767.0,95766.0,0.02314312]
[1739466514000,0.001,95769.0,95766.0,0.02314312]
[1739466514204,0.01130907,95767.0,95766.0,0.02314312]
[1739466514378,0.001,95769.0,95766.0,0.02314312]
[1739466514583,0.01130907,95767.0,95766.0,0.02314312]
[1739466514806,0.001,95768.0,95766.0,0.02314312]
[1739466515005,0.001,95768.0,95767.0,0.02822848]
[1739466515609,0.001,95768.0,95766.0,0.02314312]
[1739466515808,0.01230907,95768.0,95767.0,0.15663]
[1739466515968,0.001,95768.0,95767.0,0.15663]
[1739466516170,0.14731764,95776.0,95769.0,0.156626]
[1739466516370,0.003,95769.0,95768.0,0.156628]
[1739466516649,0.003,95769.0,95768.0,0.04911178]
[1739466516852,0.156621,95773.0,95766.0,0.02314312]
[1739466517105,0.184422,95772.0,95766.0,0.17977412]
[1739466517283,0.003,95768.0,95767.0,0.38973365]
[1739466517637,0.001,95768.0,95767.0,0.38973365]
[1739466517840,0.0001064,95776.0,95775.0,0.156617]
[1739466518067,0.0001064,95776.0,95775.0,0.42033125]
[1739466518702,0.0001064,95776.0,95775.0,0.46803125]
[1739466519427,0.0001064,95776.0,95775.0,0.47003125]
[1739466520578,0.0001064,95776.0,95775.0,0.47103125]
[1739466520778,0.0001064,95776.0,95775.0,0.47503125]
[1739466522181,0.0001064,95776.0,95775.0,0.49803125]
[1739466532034,0.1567214,95776.0,95775.0,0.24010365]
[1739466532256,0.16369362,95776.0,95775.0,0.10950365]
[1739466532461,0.16369362,95776.0,95775.0,0.007]
[1739466532869,0.33017262,95776.0,95775.0,0.007]
[1739466533078,0.01635574,95820.0,95819.0,0.156545]
[1739466533276,7e-05,95832.0,95819.0,0.0804]
[1739466533499,0.14721124,95830.0,95819.0,0.0804]
[1739466533711,0.237613,95829.0,95819.0,0.0804]
[1739466534120,0.237613,95829.0,95811.0,0.0809]
[1739466534324,0.156536,95825.0,95812.0,0.11524365]
[1739466534540,7e-05,95832.0,95813.0,0.02404367]
[1739466534754,0.003,95830.0,95814.0,0.10250365]
[1739466534952,0.238104,95829.0,95824.0,0.156536]
[1739466535158,0.238104,95829.0,95825.0,0.10250365]
[1739466535380,0.238104,95829.0,95827.0,0.156531]
[1739466535586,0.238104,95829.0,95828.0,0.15653]
[1739466536293,0.238104,95829.0,95828.0,0.33853365]
[1739466536873,0.227633,95829.0,95828.0,0.33853365]
[1739466537430,7e-05,95832.0,95828.0,0.33853365]
[1739466537431,0.231223,95831.0,95828.0,0.18200365]
[1739466537620,0.233223,95831.0,95830.0,0.156527]
[1739466537818,0.233223,95831.0,95830.0,0.10250365]
[1739466538435,0.233223,95831.0,95826.0,0.01025037]
[1739466538632,0.24199021,95831.0,95827.0,0.10250365]
[1739466538833,0.492934,95830.0,95827.0,0.10250365]
[1739466539086,0.325106,95829.0,95827.0,0.10250365]
[1739466539312,0.235751,95830.0,95827.0,0.10250365]
[1739466539552,0.340748,95830.0,95818.0,0.156546]
[1739466539795,0.442184,95829.0,95819.0,0.16788575]
[1739466540031,0.156533,95827.0,95819.0,0.16788575]
[1739466540255,0.156533,95827.0,95819.0,0.32442975]
[1739466540692,0.00876721,95829.0,95819.0,0.16788575]
[1739466540893,0.00960852,95826.0,95822.0,0.156538]
[1739466541109,0.00876721,95829.0,95820.0,0.04564168]
[1739466541321,0.00960852,95825.0,95820.0,0.10250365]
[1739466541529,0.208711,95827.0,95820.0,0.10250365]
[1739466541753,0.00876721,95829.0,95820.0,0.10250365]
[1739466541932,0.00876721,95829.0,95809.0,0.1248]
[1739466541933,0.156541,95822.0,95812.0,0.156556]
[1739466542193,0.156542,95821.0,95813.0,0.18738925]
[1739466542395,0.00976721,95829.0,95813.0,0.18738925]
[1739466542609,0.00960852,95820.0,95813.0,0.10250365]
[1739466542829,0.156553,95814.0,95813.0,0.10250365]
[1739466543223,0.16611127,95814.0,95813.0,0.10250365]
[1739466543513,0.00955827,95814.0,95813.0,0.10250365]
[1739466543732,0.156554,95813.0,95809.0,0.1248]
[1739466543974,0.156547,95818.0,95810.0,0.13064065]
[1739466544236,0.156535,95825.0,95810.0,0.28719965]
[1739466544451,0.00876721,95814.0,95813.0,0.004]
[1739466544663,0.00876721,95814.0,95810.0,0.28719865]
[1739466544906,0.00876721,95814.0,95811.0,0.08295066]
[1739466545154,0.00876721,95814.0,95813.0,0.001]
[1739466545402,0.00876721,95814.0,95811.0,0.18545431]
[1739466545649,0.00876721,95813.0,95811.0,0.18545431]
[1739466545893,0.00876721,95813.0,95812.0,0.156556]
[1739466546140,0.00876721,95813.0,95812.0,0.08843073]
[1739466546380,0.00876721,95813.0,95811.0,0.10250365]
[1739466546836,0.16611578,95812.0,95811.0,0.10250365]
[1739466547090,0.00955978,95812.0,95809.0,0.1248]
[1739466547328,0.01832699,95812.0,95810.0,0.10250365]
[1739466547541,0.01832699,95812.0,95811.0,0.02273037]
[1739466547759,0.01832699,95812.0,95811.0,0.02473037]
[1739466548157,0.01832699,95812.0,95811.0,0.02273037]
[1739466548362,0.00876721,95812.0,95811.0,0.02273037]
[1739466548567,0.01832108,95812.0,95811.0,0.02273037]
[1739466548781,0.00876721,95812.0,95811.0,0.02373037]
[1739466548991,0.16532321,95812.0,95811.0,0.02373037]
[1739466549202,0.00876721,95812.0,95811.0,0.02373037]
[1739466549404,0.01832108,95812.0,95811.0,0.02373037]
[1739466549614,0.00876721,95812.0,95811.0,0.02373037]
[1739466550058,0.01832108,95812.0,95811.0,0.02373037]
[1739466550926,0.01832108,95812.0,95811.0,0.02573037]
[1739466551793,0.01832108,95812.0,95811.0,0.18228837]
[1739466552004,0.00955387,95812.0,95811.0,0.18228837]
[1739466552236,0.156543,95820.0,95812.0,0.156555]
[1739466552451,0.156543,95820.0,95813.0,0.0827092]
[1739466552874,0.00955387,95819.0,95813.0,0.0827092]
[1739466553276,0.00955387,95819.0,95818.0,0.156546]
[1739466553487,0.00955387,95819.0,95814.0,0.10250365]
[1739466553692,0.156534,95826.0,95818.0,0.156546]
[1739466553894,0.208691,95836.0,95819.0,0.04677907]
[1739466554095,0.0095677,95825.0,95819.0,0.04677907]
[1739466554297,0.156541,95822.0,95814.0,0.10250365]
[1739466554761,0.00956736,95821.0,95814.0,0.10250365]
[1739466555260,0.00956736,95821.0,95814.0,0.25905565]
[1739466555470,0.00956736,95821.0,95814.0,0.31123965]
[1739466555685,0.00956736,95821.0,95820.0,0.156543]
[1739466555877,0.0001065,95829.0,95825.0,0.156535]
[1739466556105,0.0001065,95829.0,95826.0,0.10250365]
[1739466556309,0.00957462,95828.0,95827.0,0.233532]
[1739466556516,0.0001065,95829.0,95828.0,0.20303]
[1739466556848,0.0001065,95829.0,95828.0,0.40640132]
[1739466557435,0.0011065,95829.0,95828.0,0.40640132]
[1739466557642,0.0001065,95829.0,95828.0,0.40640132]
[1739466559004,0.0011065,95829.0,95828.0,0.40640132]
[1739466560800,0.0011065,95829.0,95828.0,0.24987132]
[1739466561185,0.1576345,95829.0,95828.0,0.24987132]
[1739466561397,0.0011065,95829.0,95828.0,0.10086767]
[1739466561561,0.00837594,95829.0,95828.0,0.10086767]
[1739466561934,0.16490394,95829.0,95828.0,0.10086767]
[1739466564279,0.01718106,95829.0,95819.0,0.0794]
[1739466564476,0.01718106,95829.0,95820.0,0.10250365]
[1739466564887,0.01718106,95829.0,95821.0,0.156541]
[1739466565135,0.16644062,95829.0,95822.0,0.10250365]
[1739466565332,0.00726944,95828.0,95822.0,0.10250365]
[1739466565536,0.156536,95824.0,95823.0,0.02294037]
[1739466565671,0.156536,95824.0,95823.0,0.12544402]
[1739466565895,0.00891162,95829.0,95823.0,0.12544402]
[1739466566146,0.16380544,95824.0,95823.0,0.02294037]
[1739466566351,0.156536,95824.0,95823.0,0.02294037]
[1739466566765,0.16380544,95824.0,95823.0,0.001]
[1739466566975,0.00726944,95824.0,95812.0,0.5352]
[1739466567179,0.156545,95819.0,95812.0,0.5352]
[1739466567385,0.20872,95822.0,95815.0,0.10250365]
[1739466567603,0.232644,95821.0,95815.0,0.10250365]
[1739466567808,0.00880512,95824.0,95815.0,0.17400638]
[1739466567809,0.15655,95816.0,95815.0,0.17400638]
[1739466568014,0.00726944,95820.0,95815.0,0.17400638]
[1739466568214,0.00880512,95818.0,95815.0,0.17400638]
[1739466568780,0.00726944,95817.0,95815.0,0.17400638]
[1739466569414,0.00880512,95816.0,95815.0,0.17400638]
[1739466569622,0.16535512,95816.0,95815.0,0.17400638]
[1739466569781,0.01607456,95816.0,95815.0,0.17800638]
[1739466569983,0.00880512,95816.0,95815.0,0.17600638]
[1739466570191,0.00880512,95816.0,95815.0,0.10450365]
[1739466570389,0.01607456,95816.0,95815.0,0.10750365]
[1739466570641,0.01607456,95816.0,95815.0,0.26105465]
[1739466570841,0.00880512,95816.0,95815.0,0.26105465]
[1739466570997,0.00880512,95816.0,95815.0,0.26305465]
[1739466571215,0.00880512,95816.0,95815.0,0.33686355]
[1739466571532,0.00880512,95816.0,95815.0,0.33786355]
[1739466575288,0.00880512,95816.0,95815.0,0.18131255]
[1739466575519,0.00880512,95816.0,95815.0,0.33786355]
[1739466576209,0.00880512,95816.0,95815.0,0.18131255]
[1739466576415,0.00880512,95816.0,95815.0,0.10550365]
[1739466577296,0.01604986,95816.0,95815.0,0.003]
[1739466578407,0.17259986,95816.0,95815.0,0.003]
[1739466578835,0.01604986,95816.0,95815.0,0.003]
[1739466579065,0.01604986,95816.0,95815.0,0.01105473]
[1739466579275,0.17259986,95816.0,95815.0,0.01105473]
[1739466579486,0.17259986,95816.0,95815.0,0.003]
[1739466580426,0.17259986,95816.0,95814.0,0.00022365]
[1739466580649,0.156551,95815.0,95814.0,0.00022365]
[1739466581108,0.35829659,95815.0,95814.0,0.00022365]
[1739466582003,0.36710171,95815.0,95814.0,0.00022365]
[1739466583194,0.36710171,95815.0,95811.0,0.00022365]
[1739466583195,0.21055071,95815.0,95811.0,0.00022365]
[1739466583426,0.156556,95812.0,95811.0,0.00022365]
[1739466583660,1.257999,95812.0,95811.0,0.00022365]
[1739466583881,1.277263,95812.0,95811.0,0.00022365]
[1739466584072,1.27196354,95812.0,95811.0,0.00022365]
[1739466584805,0.57473154,95812.0,95811.0,0.00022365]
[1739466585707,0.58589329,95812.0,95811.0,0.00022365]
[1739466585925,0.58689329,95812.0,95811.0,0.00022365]
[1739466586829,0.58789329,95812.0,95811.0,0.00022365]
[1739466589858,0.33512329,95812.0,95811.0,0.00022365]
[1739466590054,0.17689229,95812.0,95811.0,0.00022365]
[1739466590259,0.30884829,95812.0,95811.0,0.00022365]
[1739466591033,0.30784829,95812.0,95811.0,0.00022365]
[1739466591212,0.17689229,95812.0,95811.0,0.00022365]
[1739466591639,0.17589229,95812.0,95811.0,0.00022365]
[1739466591822,0.17489229,95812.0,95811.0,0.00022365]
[1739466592020,0.17689229,95812.0,95811.0,0.00022365]
[1739466592696,0.156556,95812.0,95811.0,0.00022365]
[1739466592907,0.16441296,95812.0,95811.0,0.00022365]
[1739466593529,0.16541296,95812.0,95811.0,0.00022365]
[1739466595566,0.16541296,95812.0,95811.0,0.01315602]
[1739466597678,0.16541296,95812.0,95811.0,0.00022365]
[1739466597902,0.90267296,95812.0,95811.0,0.00022365]
[1739466601920,0.0001065,95814.0,95812.0,0.0828]
[1739466602154,0.0001065,95814.0,95813.0,0.43310112]
[1739466602374,0.0001065,95814.0,95813.0,0.56115765]
[1739466603728,0.0001065,95814.0,95813.0,0.56815765]
[1739466604886,0.0001065,95814.0,95813.0,0.56115765]
[1739466605086,0.0001065,95814.0,95813.0,1.10335765]
[1739466605295,0.0001065,95814.0,95813.0,1.11035765]
[1739466605499,0.0001065,95814.0,95813.0,1.09635765]
[1739466605707,0.0001065,95814.0,95813.0,1.10335765]
[1739466605904,0.0001065,95814.0,95813.0,1.11035765]
[1739466606694,0.0001065,95814.0,95813.0,1.11401309]
[1739466607971,0.0001065,95814.0,95813.0,1.10701309]
[1739466608167,0.0001065,95814.0,95813.0,1.08035765]
[1739466608387,0.0001065,95814.0,95813.0,1.08735765]
[1739466608578,0.0001065,95814.0,95813.0,0.53815765]
[1739466608783,0.0001065,95814.0,95813.0,0.57515765]
[1739466608990,0.0001065,95814.0,95813.0,0.55215765]
[1739466609207,0.0001065,95814.0,95813.0,0.56815765]
[1739466609404,0.00887394,95814.0,95813.0,0.56115765]
[1739466609624,0.00887394,95814.0,95813.0,0.57515765]
[1739466609846,0.00887394,95814.0,95813.0,0.56815765]
[1739466610385,0.00887394,95814.0,95813.0,0.007]
[1739466610617,0.01425951,95814.0,95813.0,0.007]
[1739466611020,0.00887394,95814.0,95813.0,0.156554]
[1739466611471,0.00887394,95814.0,95813.0,0.26605765]
[1739466611895,0.00887394,95814.0,95813.0,0.25905765]
[1739466612047,0.00887394,95814.0,95813.0,0.26605765]
[1739466612566,0.00887394,95814.0,95813.0,0.25905765]
[1739466612944,0.00887394,95814.0,95813.0,0.26505765]
[1739466613348,0.00887394,95814.0,95813.0,0.28805765]
[1739466613547,0.00887394,95814.0,95813.0,0.52065765]
[1739466613746,0.00887394,95814.0,95813.0,0.51365765]
[1739466614151,0.00887394,95814.0,95813.0,0.50765765]
[1739466614363,0.00887394,95814.0,95813.0,0.51465765]
[1739466614561,0.00887394,95814.0,95813.0,0.56095765]
[1739466615362,0.00887394,95814.0,95813.0,0.56795765]
[1739466615571,0.0001065,95814.0,95813.0,0.56795765]
[1739466615982,0.0001065,95814.0,95813.0,1.42695765]
[1739466617717,0.0001065,95814.0,95813.0,1.43783842]
[1739466619495,0.0001065,95814.0,95813.0,1.42695765]
[1739466619700,0.0001065,95814.0,95813.0,1.40395765]
[1739466620217,0.0001065,95814.0,95813.0,1.42695765]
[1739466620404,0.00887394,95814.0,95813.0,0.89175765]
[1739466620972,0.156515,95838.0,95829.0,0.156527]
[1739466621199,0.156515,95838.0,95829.0,0.10250365]
[1739466621357,0.00551153,95837.0,95829.0,0.10250365]
[1739466621550,0.156517,95836.0,95829.0,0.10250365]
[1739466622043,0.00551153,95835.0,95829.0,0.10250365]
[1739466622727,0.00551153,95835.0,95829.0,0.25903165]
[1739466622931,0.00551153,95835.0,95830.0,0.208702]
[1739466623159,0.15651,95840.0,95832.0,0.156522]
[1739466623366,0.0101065,95872.0,95829.0,0.10250365]
[1739466623496,0.15652,95835.0,95829.0,0.10250365]
[1739466623901,0.00551153,95834.0,95829.0,0.10350365]
[1739466624108,0.156514,95838.0,95830.0,0.156527]
[1739466624337,0.00551153,95833.0,95829.0,0.10250365]
[1739466624535,0.16425958,95867.0,95829.0,0.10250365]
[1739466624703,0.648066,95848.0,95829.0,0.10250365]
[1739466624906,0.208665,95847.0,95829.0,0.10250365]
[1739466625107,0.559907,95847.0,95833.0,0.156521]
[1739466625327,0.559907,95847.0,95831.0,0.2087]
[1739466625328,0.156512,95839.0,95831.0,0.156523]
[1739466625747,0.156511,95840.0,95832.0,0.156523]
[1739466625971,0.00551153,95838.0,95832.0,0.156523]
[1739466626207,0.308648,95855.0,95829.0,0.10350365]
[1739466626208,0.1,95855.0,95829.0,0.10350365]
[1739466626382,0.00551153,95837.0,95829.0,0.10350365]
[1739466626571,0.156515,95838.0,95829.0,0.25903065]
[1739466626979,0.00551153,95837.0,95830.0,0.156526]
[1739466627198,0.16202653,95837.0,95830.0,0.156526]
[1739466627401,0.00551153,95837.0,95829.0,0.10250365]
[1739466627765,0.156521,95834.0,95829.0,0.10250365]
[1739466627985,0.156523,95833.0,95829.0,0.10250365]
[1739466628337,0.156523,95833.0,95811.0,0.00022365]
[1739466628338,0.15,95831.0,95811.0,0.00022365]
[1739466628461,0.14721124,95821.0,95811.0,0.00022365]
[1739466628663,0.156554,95813.0,95811.0,0.00022365]
[1739466628909,0.0821,95824.0,95811.0,0.00022365]
[1739466629114,0.00547062,95812.0,95811.0,0.00022365]
[1739466629327,0.156554,95814.0,95811.0,0.00022365]
[1739466629533,0.00547062,95812.0,95811.0,0.00022365]
[1739466629724,0.156546,95819.0,95811.0,0.00022365]
[1739466629921,0.00547062,95812.0,95811.0,0.00022365]
[1739466630096,0.0821,95837.0,95811.0,0.1027273]
[1739466630321,0.890691,95836.0,95812.0,0.10250365]
[1739466630581,0.158542,95821.0,95817.0,0.0787]
[1739466630783,0.002,95821.0,95812.0,0.1814273]
[1739466631039,0.15654,95822.0,95812.0,0.1814273]
[1739466631216,0.14721124,95830.0,95812.0,0.1814273]
[1739466631504,0.865859,95829.0,95812.0,0.1027273]
[1739466631740,1.074564,95829.0,95812.0,0.1027273]
[1739466631977,0.208726,95820.0,95812.0,0.1027273]
[1739466632141,0.156541,95822.0,95812.0,0.2592833]
[1739466632359,0.19131124,95840.0,95812.0,0.1027273]
[1739466632645,0.19131124,95840.0,95813.0,0.156553]
[1739466632646,0.156538,95823.0,95813.0,0.156553]
[1739466633097,0.208715,95825.0,95813.0,0.156553]
[1739466633294,0.14721124,95830.0,95812.0,0.3114683]
[1739466633520,0.489924,95829.0,95813.0,0.156554]
[1739466633765,0.002,95829.0,95814.0,0.10250365]
[1739466634024,0.156532,95827.0,95817.0,0.156548]
[1739466634269,0.156521,95834.0,95818.0,0.18100365]
[1739466634525,0.14721124,95840.0,95818.0,0.18100365]
[1739466634526,0.002,95830.0,95818.0,0.18100365]
[1739466634725,0.002,95830.0,95829.0,0.156528]
[1739466634874,0.156515,95838.0,95829.0,0.156528]
[1739466635083,0.0004,95849.0,95818.0,0.18100365]
[1739466635264,0.156513,95839.0,95830.0,0.156526]
[1739466635465,0.00649691,95836.0,95831.0,0.156525]
[1739466635847,0.00649691,95836.0,95829.0,0.156527]
[1739466635987,0.00649691,95836.0,95830.0,0.156526]
[1739466636391,0.00649691,95836.0,95818.0,0.18100365]
[1739466636736,0.156509,95841.0,95832.0,0.156523]
[1739466637082,0.00749691,95836.0,95835.0,0.156519]
[1739466637276,0.001,95836.0,95830.0,0.156526]
[1739466637713,0.00649691,95835.0,95830.0,0.156526]
[1739466637928,0.0011065,95837.0,95830.0,0.156526]
[1739466638127,0.00649691,95834.0,95824.0,0.208715]
[1739466638389,0.0011065,95837.0,95828.0,0.156529]
[1739466638592,0.0011065,95837.0,95829.0,0.10250365]
[1739466638793,0.00649691,95836.0,95829.0,0.10250365]
[1739466638994,0.00649691,95836.0,95830.0,0.156526]
[1739466639192,0.00649691,95836.0,95829.0,0.25903065]
[1739466639344,0.00649691,95836.0,95830.0,0.156527]
[1739466639546,0.00649691,95836.0,95829.0,0.10250365]
[1739466639754,0.00749691,95836.0,95829.0,0.10250365]
[1739466640206,0.16401491,95836.0,95830.0,0.001]
[1739466640417,0.00649691,95836.0,95830.0,0.001]
[1739466640619,0.00749691,95836.0,95830.0,0.001]
[1739466641241,0.00649691,95836.0,95830.0,0.001]
[1739466641440,0.00649691,95836.0,95829.0,0.10250365]
[1739466641861,0.00649691,95836.0,95829.0,0.10350365]
[1739466642065,0.16301491,95836.0,95829.0,0.10250365]
[1739466642271,0.16301491,95836.0,95830.0,0.001]
[1739466642676,0.16301491,95836.0,95829.0,0.10250365]
[1739466643187,0.16401491,95836.0,95829.0,0.10250365]
[1739466643625,0.00649691,95836.0,95835.0,0.156519]
[1739466643865,0.00649691,95836.0,95835.0,0.0824]
[1739466644058,0.001,95836.0,95835.0,0.0824]
[1739466644445,0.00651455,95836.0,95835.0,0.238919]
[1739466644869,0.00975876,95836.0,95835.0,0.238919]
[1739466645076,0.00975876,95836.0,95835.0,0.0834]
[1739466645331,0.208673,95844.0,95835.0,0.0834]
[1739466645332,0.15676078,95844.0,95835.0,0.0834]
[1739466645508,0.00651455,95836.0,95835.0,0.0834]
[1739466645719,0.156509,95842.0,95835.0,0.0834]
[1739466645922,0.00651455,95836.0,95835.0,0.239918]
[1739466646129,0.15676078,95844.0,95835.0,0.239918]
[1739466646336,0.14721124,95850.0,95835.0,0.0834]
[1739466646525,0.002,95844.0,95835.0,0.0834]